Cogmind - Beta 16 @@@ ROGUE MODE // 2025.11.24 @ 17:37:28 Player: Mozco Result: Destroyed by S-10 Pest with Light Assault Rifle Performance ------------- Evolutions (0) 0 Regions Visited (1) 200 Robots Destroyed (31) 155 Value Destroyed (695) 695 Prototype IDs (3) 60 Alien Tech Used (0) 0 Bonus (0) 0 TOTAL SCORE: 1110 Bonus ------- None Cogmind --------- Core Integrity 0/250 Matter 298/300 Energy 100/100 System Corruption 2% Temperature Cool (1) Movement Core (350) Ox6 Location -10/Materials Parts ------- > --- POWER (1) -------- (None) > --- PROPULSION (2) --- (None) > --- UTILITY (2) ------ Large Storage Unit > --- WEAPON (2) ------- Light Assault Rifle (fused) > --- INVENTORY (15) --- Ion Engine Ion Engine Ion Engine Heat Sink Heat Sink Heat Sink Improved Heat Sink Huge Storage Unit Large Matter Pod (150) Structural Scanner ECM Suite Core Shielding Assault Rifle Datajack Peak State ------------ > --- POWER ------------ Ion Engine > --- PROPULSION ------- Light Treads Light Treads > --- UTILITY ---------- Large Storage Unit Hacking Suite > --- WEAPON ----------- Assault Rifle Light Assault Rifle > --- INVENTORY -------- Light Ion Engine Heat Sink Huge Storage Unit Structural Scanner ECM Suite Core Shielding Light Armor Plating EM Pulse Gun Assault Rifle Datajack [Rating: 10] Favorites ----------- Power Ion Engine Engine Ion Engine Propulsion Light Treads Treads Light Treads Utility Large Storage Unit Storage Large Storage Unit Hackware Hacking Suite Protection Light Armor Plating Weapon Assault Rifle Energy Gun EM Pulse Gun Ballistic Gun Assault Rifle Build | -11 -10 ------- Run | Yrd Mat Slots Evolved . | . . Power . | . . Propulsion . | . . Utility . | . . Weapon . | . . Parts Attached 13 | 6 7 Power 2 | 1 1 Engine 2 | 1 1 Core . | . . Reactor . | . . Propulsion 2 | 2 . Treads 2 | 2 . Leg . | . . Wheel . | . . Hover . | . . Flight . | . . Utility 5 | 1 4 Device . | . . Storage 2 | 1 1 Processor . | . . Hackware 1 | . 1 Protection 2 | . 2 Artifact . | . . Weapon 4 | 2 2 Energy Gun 1 | . 1 Energy Cannon . | . . Ballistic Gun 3 | 2 1 Ballistic Cannon . | . . Launcher . | . . Special Weapon . | . . Impact Weapon . | . . Slashing Weapon . | . . Piercing Weapon . | . . Special Melee Weapon . | . . Unidentified Prototypes . | . . Parts Lost 7 | . 7 Power 2 | . 2 Propulsion 2 | . 2 Utility 1 | . 1 Weapon 2 | . 2 Highest Loss Streak 4 | . 4 To Critical Strikes . | . . Average Backups 9 | 1 9 Power 1 | . 1 Propulsion . | . . Utility 5 | . 5 Weapon 1 | . 1 Tool/Special . | . . Unused Backups 13 | . 13 Power 3 | . 3 Propulsion . | . . Utility 9 | . 9 Weapon . | . . Tool/Special 1 | . 1 Average Slot Usage (%) 83 | . 83 Engine 11 | . 11 Treads 17 | . 17 Storage 14 | . 14 Hackware 8 | . 8 Protection 5 | . 5 Energy Gun 2 | . 2 Ballistic Gun 22 | . 22 Peak Build Rating 10 | 6 10 Average Rating 7 | 4 7 On Entrance 3 | . 6 Avg Prop Armor Cover (%) . | . . Naked Turns . | . . Heaviest Build 29 | 14 29 Greatest Support 40 | 40 40 Greatest Overweight (x) 8 | . 8 Average Overweight (x) 1 | . 1 Largest Inventory Capacity 15 | 8 15 Average Capacity 12 | 6 13 Most Carried 14 | 2 14 Average Carried 9 | 1 9 Final Capacity 15 | 8 15 Final Carried 14 | 2 14 Class Distribution -------------------- 100% | Mutant Dominant Class ---------------- Mutant | -10/Materials Resources | -11 -10 ----------- Run | Yrd Mat Matter Collected 848 | 249 599 Remotely . | . . Salvage Created 1038 | . 1038 Parts 61 | . 61 Haulers Intercepted 1 | . 1 Recyclers Shooed 3 | . 3 Parts Field Recycled . | . . Retrieved Matter . | . . Parts Self-Destructed . | . . Prevented . | . . Parts Restored . | . . Kills | -11 -10 ------- Run | Yrd Mat Combat Hostiles Destroyed 19 | . 19 Guns 17 | . 17 AOE 2 | . 2 Classes Destroyed 8 | . 8 Worker 2 | . 2 Builder 3 | . 3 Hauler 1 | . 1 Recycler 2 | . 2 Operator 1 | . 1 Watcher 3 | . 3 Swarmer 3 | . 3 Grunt 16 | . 16 Best Kill Streak 7 | . 7 Combat Bots Only 4 | . 4 Max Kills in Single Turn 2 | . 2 Gunslinging 1 | . 1 Exploded 1 | . 1 Melee . | . . Uniques/NPCs Destroyed . | . . Combat | -11 -10 -------- Run | Yrd Mat Hostile Shots Fired 124 | . 124 Missed 28 | . 28 Hits 96 | . 96 Projectile 96 | . 96 Damage Taken 1060 | . 1060 Core 253 | . 253 Absorbed by Shields . | . . Redirected to Shielding 2 | . 2 Core Remaining (%) 100 | 100 . Volleys Fired 100 | . 100 Largest 2 | . 2 Hottest 60 | . 60 Shots Fired 188 | . 188 Gun 188 | . 188 Cannon . | . . Launcher . | . . Special . | . . Kinetic 164 | . 164 Thermal . | . . Explosive . | . . Electromagnetic 24 | . 24 Robot Hit Streak 8 | . 8 Robot Miss Streak 4 | . 4 Penetration Max . | . . Secondary Targets 3 | . 3 Max Gunslinging Chain 1 | . 1 Shots Hit Robots 120 | . 120 Core Hits 56 | . 56 Critical Kills 1 | . 1 Critical Parts Destroyed 1 | . 1 Critical Strikes 4 | . 4 Destroy 2 | . 2 Corrupt 2 | . 2 Melee Attacks . | . . Impact . | . . Slashing . | . . Piercing . | . . Sneak Attacks . | . . Combat Hostiles . | . . Follow-up Attacks . | . . Damage Inflicted 1764 | . 1764 Guns 1515 | . 1515 Cannons . | . . Explosions 241 | . 241 Melee . | . . Ramming 8 | . 8 Kinetic 1263 | . 1263 Thermal 241 | . 241 Explosive . | . . Electromagnetic 252 | . 252 Impact . | . . Slashing . | . . Piercing . | . . Highest Corruption 2 | . 2 Average Corruption 2 | . 2 Corruption Purged . | . . Corruption Blocked . | . . Effects 10 | . 10 Message Errors 3 | . 3 Matter Fused 2 | . 2 Heat Flow Errors 1 | . 1 Energy Discharges 1 | . 1 Parts Fused 1 | . 1 Data Loss (minor) 2 | . 2 Overload Shots . | . . Overflow Damage . | . . Projectiles . | . . Explosions . | . . Melee . | . . Knockbacks . | . . Impact . | . . Kinetic . | . . Secondary . | . . Self-Inflicted Damage . | . . Shots . | . . Rammed 3 | . 3 Targets Rammed 3 | . 3 Kicked . | . . Crushed . | . . Highest Temperature 179 | . 179 Average Temperature 51 | . 51 Received Heat Transfer 486 | . 486 Siege Activations . | . . Martial Activations . | . . Shielding Activations . | . . Robots Disrupted . | . . Combat Hostiles . | . . Robots Corrupted . | . . Combat Hostiles . | . . Parts Fried 2 | . 2 Impact Corruptions . | . . Robots Melted . | . . Combat Hostiles . | . . Parts Melted . | . . Heat Transferred 350 | . 350 Parts Sabotaged . | . . Parts Stolen . | . . Parts Stripped . | . . Power Chain Reactions 3 | . 3 Alert | -11 -10 ------- Run | Yrd Mat Maximum Alert Level 1 | . 1 Low Security (%) 56 | 100 54 Level 1 43 | . 45 Level 2 . | . . Level 3 . | . . Level 4 . | . . Level 5 . | . . High Security . | . . Max Security . | . . Peak Influence 252 | . 252 Initial . | . . Average 145 | . 154 Influence Increases 640 | . 640 Destroy 0b10 Robot/C 380 | . 380 Destroy 0b10 Robot/NC 60 | . 60 Destroy Leader 98 | . 98 Successful Hack 4 | . 4 Select Force Hacks 60 | . 60 Destroy Structure 8 | . 8 Lose Combat Pursuer 30 | . 30 Influence Decreases 466 | . 466 Time Decay 396 | . 396 Lost Part 70 | . 70 Squads Dispatched 7 | . 7 Investigation 4 | . 4 Extermination . | . . Reinforcement 3 | . 3 Assault . | . . Garrison . | . . Intercept . | . . Searches Triggered . | . . Construction Impeded . | . . Haulers Reinforced . | . . Active Scanning Responses . | . . Cargo Convoy Interrupts . | . . Stealth | -11 -10 --------- Run | Yrd Mat Distress Signals 2 | . 2 Communications Jammed . | . . Distress Signals . | . . Times Spotted 37 | . 37 Peak Tracking Total 6 | . 6 Tactical Retreats 1 | . 1 Traps | -11 -10 ------- Run | Yrd Mat Traps Triggered 2 | . 2 Indirectly . | . . Trap Hack Attempts . | . . Triggered . | . . Disarmed . | . . Reprogrammed . | . . Reused . | . . Traps Extracted . | . . Installed . | . . Triggered . | . . Machines | -11 -10 ---------- Run | Yrd Mat Machines Disabled . | . . Max in Single Turn . | . . Machines Repaired . | . . Machines Dismantled . | . . Machines Sabotaged . | . . Overloaded Fab Kills . | . . Hacking | -11 -10 --------- Run | Yrd Mat Machines Accessed 5 | . 5 Terminals 3 | . 3 Fabricators . | . . Repair Stations . | . . Recycling Units 2 | . 2 Scanalyzers . | . . Garrison Access . | . . Total Hacks 13 | . 13 Successful 7 | . 7 Failed 5 | . 5 Catastrophic 1 | . 1 Database Lockouts 1 | . 1 Manual 11 | . 11 Terminals 11 | . 11 Fabricators . | . . Repair Stations . | . . Recycling Units 2 | . 2 Scanalyzers . | . . Garrison Access . | . . Terminal Hacks 4 | . 4 Robot Analysis 2 | . 2 Prototype ID Bank 2 | . 2 Fabricator Hacks . | . . Repair Station Hacks . | . . Recycling Unit Hacks . | . . Scanalyzer . | . . Garrison Access Hacks . | . . Unauthorized Hacks 3 | . 3 Terminals 1 | . 1 Botnet 1 | . 1 Fabricators . | . . Repair Stations . | . . Recycling Units 2 | . 2 Tunnel 2 | . 2 Scanalyzers . | . . Garrison Access . | . . Data Cores Recovered . | . . Used . | . . Hacking Detections 3 | . 3 Full Trace Events 3 | . 3 Feedback Events . | . . Feedback Blocked . | . . Robot Schematics Acquired . | . . Robots Built . | . . Authchips . | . . Time . | . . Total Robot Build Rating . | . . Part Schematics Acquired . | . . Parts Built . | . . Authchips . | . . Time . | . . Total Part Build Rating . | . . Part Studies Acquired . | . . Parts Repaired . | . . Time . | . . Parts Recycled . | . . Recycled Matter . | . . Retrieved Matter . | . . Retrieved Components . | . . Parts Scanalyzed . | . . Part Schematics Acquired . | . . Parts Damaged . | . . Bothacking | -11 -10 ------------ Run | Yrd Mat Used RIF Installer . | . . Robots Hacked . | . . Non-combat . | . . Combat . | . . Robot Hacks Applied . | . . Relay Couplers Released . | . . Fabnet Peak Effective % . | . . Robots Rewired . | . . Allies Hacked . | . . Hacks Repelled . | . . Allies | -11 -10 -------- Run | Yrd Mat Total Allies . | . . Largest Group . | . . Highest-Rated Group . | . . Highest-Rated Ally . | . . Total Orders . | . . Ally Attacks . | . . Total Damage . | . . Kills . | . . Allies Corrupted . | . . Allies Melted . | . . Intel | -11 -10 ------- Run | Yrd Mat Active Infowar (turns) . | . . Robot Analysis Total 2 | . 2 Derelict Logs Recovered . | . . Drone Launches . | . . Drone Recoveries . | . . Exploration | -11 -10 ------------- Run | Yrd Mat Turns Passed 1175 | 67 1108 Spaces Moved 412 | 38 374 Core 80 | 3 77 Treads 332 | 35 297 Legs . | . . Wheels . | . . Hover . | . . Flight . | . . Fastest Speed 50 | 50 160 Average Speed 207 | 151 213 Slowest Speed 450 | 160 450 Overloaded Moves . | . . Propulsion Burnouts . | . . Robots Hopped . | . . Potential Cave-ins . | . . Cave-ins Triggered . | . . Exploration Rate (%) 35 | 4 67 Regions Visited 1 Branch Regions . Pre-discovered Areas 2 | . 2 Known Exits Taken . | . . Unknown Exits Taken 1 | 1 . Scrap Searched . | . . Spaces Dug . | . . Terrain Destroyed 7 | . 7 Melee . | . . Projectile . | . . AOE 7 | . 7 Terrain Rammed . | . . Walls Destroyed . | . . Machines Disabled . | . . Actions | -11 -10 --------- Run | Yrd Mat Total 548 | 45 503 Wait 2 | . 2 Move 411 | 37 374 Hop . | . . Pick Up 17 | 2 15 Fast Attach 7 | 6 1 Attach 2 | . 2 Detach . | . . Swap 4 | . 4 Drop 2 | . 2 Fire 100 | . 100 Melee . | . . Ram . | . . Kick . | . . Crush 3 | . 3 Escape Stasis . | . . Rewire . | . . Trap . | . . Miscellaneous . | . . Route ------- -11/Scrapyard -10/Materials (discovered 3 exits: [*Mat] / [*Min] / [*Sub]) History --------- Turn | Location | Event 44 | -11/Scrapyard | Discovered new exit (range 12) 68 | -11/Scrapyard | Entered Materials 328 | -10/Materials | Build established: Mutant 447 | -10/Materials | Discovered new exit (range 7) 659 | -10/Materials | Discovered new exit (range 16) 798 | -10/Materials | Lost 4 parts (1p2n1w) 927 | -10/Materials | Discovered new exit (range 7) 963 | -10/Materials | Core integrity fell below 50% 1136 | -10/Materials | Central database locked down 1166 | -10/Materials | Core integrity fell below 20% 1176 | -10/Materials | Destroyed by S-10 Pest with Light Assault Rifle Last Messages --------------- 01011_ K-01 Serf collects debris. 01011_ U-05 Engineer lays Concrete. 01011_ Acquired 38 matter. 01015_ Extracted 22 matter. 01020_ K-01 Serf collects debris. 01031_ Acquired Imp. Heat Sink. 01033_ U-05 Engineer lays Concrete. 01040_ U-05 Engineer repairs door. 01045_ U-05 Engineer lays Concrete. 01094_ Acquired 1 matter. 01136_ DTI6MQ5T0U1BAW%QKI=>PEKUPS35MYH>N>2FTD 01136_ Connecting with Terminal... >>Prototypes Downloading prototype IDs... Imp. EM Shotgun Imp. Flight Unit 01136_ ALERT: Central database lockdown, local access denied. 01136_ ALERT: Suspicious activity at Terminal M002. Dispatching Investigation squad. 01173_ Lgt. Armor Plating destroyed. Map ----- +----------------------------------------------------+ | | | | | | | | | | | | | ?????????????????????????????????????????????????? | | ?????????????????????????????????????????????????? | | ?????????????????????????????????????????????????? | | ?????????????????????????????????????????????????? | | ?????????????????????????????????????????????????? | | ?????????????????????????????????????????????????? | | ?????????????????????????????????????????????????? | | ?????????????????????????????????????????????????? | | ?????????????????????????????????????????????????? | | ?????????????????????#####+#?????????????????????? | | ?????????????????????# ?#?????????????????? | | ?????????????????????# #?????????????????? | | ?????????????????????# """ #?+#??????????????? | | ?????????????????????# !! """ # ???????????????? | | ?????????????????????# !! """ + ????????????????? | | #####????????????????# !! #?????????????????? | | ######???????????? ????? ??????????? | | "" # ?????????????? r ????? ?????????? | | Y" #" """???###########g##### ????????? | | "" #" """""#?# """ #@ s ????????? | | #" """""#?# "T" # ss ????????? | | " #T """""#?# #u ^ ????????? | | " #" """ #?# + ????????? | | " #" #?# # """ """ ""?????????? | | #" ! #?# """ # """ """? ???????????? | | ##### #?# """ # t""" """?????????????? | | ######+####### """ + ?????????????? | | /% # ?????????????? | | ############### a ?????????????? | | #?????????????#+#"T"#####?#????????????? | | ##### #????????????? ?####??????????????????? | | ####### #????????????? ???????????????????????? | | # #????????????? ???????????????????????? | | ^ # #??#######???? ???????????????????????? | | """"" + #?"""""""#????? ???????????????????????? | | """"" #[%*#?" !"! "#????? ???????????????????????? | | """"" #==%##" "##+##?????????????????????????? | | ^ #%*![%= ????????????????????????? | | ]!! #!! *! < ????????????????????????? | | ]! #[!%=* ????????????????????????? | | ]! ^ # =!## ##+##?????????????????????????? | | # ##########?????????????????????????????? | | %# #??????????????????????????????????????? | | ####### ##########?????????????????????????????? | +----------------------------------------------------+ Best States ------------- Heat Dissipation 25 Energy Generation 10 Energy Capacity 250 Matter Stores 300 Matter Capacity 300 Sight Range 16 Terrain Scan Density 10 Armor Coverage 150 Core Shielding 20 Evasion (%) 40 Recoil Reduction 2 Offensive Hacking 10 Item Schematics ----------------- None Robot Schematics ------------------ None Fabricated ------------ Nothing Repaired ---------- Nothing Studied --------- None Alien Tech Used ----------------- None Achievements -------------- None Challenges ------------ None Game ------ Seed FieldGravitonTerminator Manual? 0 Play Time 00:11:31 Cumulative 329.3 hours Start 2025.11.24 @ 17:31:24 End 2025.11.24 @ 17:37:28 Sessions 1 Manual Loads 0 Difficulty Rogue Special Mode None Game No. 346 Rogue 342 Adventurer 3 Explorer 1 Win Type - Total 2 Types 2/0/0/0/0/0/0/0/0/0 Lore% 82 Gallery% 78 Achievement% 63 Wizard Run 0 Options --------- Layout 0 ASCII 0 Keyboard 0 Movement Numpad Keybinds 0 Fullscreen 2 Font 18/SmallcapsGlow Map View 76x50 Zoom Use 0% Tactical HUD 1 Map Filters NONE Filters NONE Steam 1 RUN: cf305d7e-872e-4fcb-b4ae-fd8ed2dde132